Cogmind - Beta 14 @@@ ROGUE MODE // 2024.10.13 @ 20:59:58 Player: APerTAS Result: Destroyed by Y-45 Defender with Heavy Assault Rifle Performance ------------- Evolutions (1) 500 Regions Visited (2) 400 Robots Destroyed (8) 40 Value Destroyed (80) 80 Prototype IDs (2) 40 Alien Tech Used (0) 0 Bonus (200) 200 TOTAL SCORE: 1260 Bonus ------- Pacifist 200 Cogmind --------- Core Integrity 0/400 Matter 88/300 Energy 99/100 System Corruption 1% Temperature Cool (0) Movement Core (50) Location -9/Materials Parts ------- > --- POWER (1) -------- (None) > --- PROPULSION (2) --- (None) > --- UTILITY (2) ------ (None) > --- WEAPON (4) ------- (None) > --- INVENTORY (5) ---- (None) Peak State ------------ > --- POWER ------------ (None) > --- PROPULSION ------- (None) > --- UTILITY ---------- (None) > --- WEAPON ----------- Rocket Launcher Rocket Launcher Rocket Launcher Rocket Launcher > --- INVENTORY -------- (None) [Rating: 8] Favorites ----------- Power None Propulsion None Utility None Weapon Rocket Launcher Launcher Rocket Launcher Build | -11 -10 -9 ------- Run | Yrd Mat Mat Slots Evolved 2 | . . 2 Power . | . . . Propulsion . | . . . Utility . | . . . Weapon 2 | . . 2 Parts Attached 4 | . . 4 Power . | . . . Engine . | . . . Core . | . . . Reactor . | . . . Propulsion . | . . . Treads . | . . . Leg . | . . . Wheel . | . . . Hover . | . . . Flight . | . . . Utility . | . . . Device . | . . . Storage . | . . . Processor . | . . . Hackware . | . . . Protection . | . . . Artifact . | . . . Weapon 4 | . . 4 Energy Gun . | . . . Energy Cannon . | . . . Ballistic Gun . | . . . Ballistic Cannon . | . . . Launcher 4 | . . 4 Special Weapon . | . . . Impact Weapon . | . . . Slashing Weapon . | . . . Piercing Weapon . | . . . Special Melee Weapon . | . . . Unidentified Prototypes . | . . . Parts Lost . | . . . Power . | . . . Propulsion . | . . . Utility . | . . . Weapon . | . . . Highest Loss Streak . | . . . To Critical Strikes . | . . . Average Slot Usage (%) 7 | . . 10 Launcher 7 | . . 10 Peak Build Rating 8 | . . 8 Average Rating . | . . 1 On Entrance . | . . . Naked Turns 133 | . 38 95 Heaviest Build 16 | . . 16 Greatest Support 3 | 3 3 3 Greatest Overweight (x) 5 | . . 5 Average Overweight (x) . | . . . Largest Inventory Capacity 5 | 5 5 5 Average Capacity 5 | 5 5 5 Most Carried . | . . . Average Carried . | . . . Final Capacity 5 | 5 5 5 Final Carried . | . . . Class Distribution -------------------- 98% | Mutant Dominant Class ---------------- Mutant | -10/Materials Mutant | -9/Materials Resources | -11 -10 -9 ----------- Run | Yrd Mat Mat Matter Collected 204 | 200 . 4 Remotely . | . . . Salvage Created 48 | . . 48 Parts 16 | . . 16 Haulers Intercepted . | . . . Recyclers Shooed 1 | . . 1 Parts Field Recycled . | . . . Retrieved Matter . | . . . Parts Self-Destructed . | . . . Prevented . | . . . Kills | -11 -10 -9 ------- Run | Yrd Mat Mat Combat Hostiles Destroyed 6 | . . 6 AOE 6 | . . 6 Classes Destroyed 2 | . . 2 Builder 2 | . . 2 Swarmer 6 | . . 6 Best Kill Streak 8 | . . 8 Combat Bots Only 6 | . . 6 Max Kills in Single Turn 4 | . . 4 Gunslinging . | . . . Exploded 4 | . . 4 Melee . | . . . Uniques/NPCs Destroyed . | . . . Combat | -11 -10 -9 -------- Run | Yrd Mat Mat Hostile Shots Fired 86 | 4 17 65 Missed 32 | 1 8 23 Damage Taken 684 | 94 93 497 Core 588 | 94 93 401 Absorbed by Shields . | . . . Core Remaining (%) 43 | 62 25 . Volleys Fired 4 | . . 4 Largest 4 | . . 4 Hottest 132 | . . 132 Shots Fired 16 | . . 16 Gun . | . . . Cannon . | . . . Launcher 16 | . . 16 Special . | . . . Kinetic . | . . . Thermal . | . . . Explosive 16 | . . 16 Electromagnetic . | . . . Robot Hit Streak 1 | . . 1 Robot Miss Streak 3 | . . 3 Penetration Max . | . . . Secondary Targets . | . . . Shots Hit Robots 2 | . . 2 Core Hits 10 | . . 10 Critical Kills . | . . . Critical Parts Destroyed . | . . . Critical Strikes . | . . . Melee Attacks . | . . . Impact . | . . . Slashing . | . . . Piercing . | . . . Sneak Attacks . | . . . Combat Hostiles . | . . . Follow-up Attacks . | . . . Damage Inflicted 474 | . 16 458 Guns . | . . . Cannons . | . . . Explosions 433 | . . 433 Melee . | . . . Ramming 41 | . 16 25 Kinetic . | . . . Thermal . | . . . Explosive 433 | . . 433 Electromagnetic . | . . . Impact . | . . . Slashing . | . . . Piercing . | . . . Highest Corruption 1 | . . 1 Average Corruption 1 | . . 1 Corruption Purged . | . . . Corruption Blocked . | . . . Effects 1 | . . 1 Message Errors 1 | . . 1 Overload Shots . | . . . Overflow Damage . | . . . Projectiles . | . . . Explosions . | . . . Melee . | . . . Knockbacks . | . . . Impact . | . . . Kinetic . | . . . Secondary . | . . . Self-Inflicted Damage 112 | . 8 104 Shots 3 | . . 3 Rammed 8 | . 2 6 Targets Rammed 8 | . 2 6 Kicked . | . . . Crushed . | . . . Highest Temperature 140 | . . 140 Average Temperature 66 | . . 66 Received Heat Transfer 99 | . 30 69 Siege Activations . | . . . Robots Corrupted . | . . . Combat Hostiles . | . . . Parts Fried . | . . . Impact Corruptions . | . . . Robots Melted . | . . . Combat Hostiles . | . . . Parts Melted . | . . . Heat Transferred . | . . . Parts Sabotaged . | . . . Parts Stolen . | . . . Parts Stripped . | . . . Power Chain Reactions . | . . . Alert | -11 -10 -9 ------- Run | Yrd Mat Mat Peak Influence 483 | 15 59 483 Initial 24 | . 9 24 Average 14 | . 32 232 Maximum Alert Level 2 | . . 2 Low Security (%) 97 | 100 100 48 Level 1 . | . . 13 Level 2 2 | . . 37 Level 3 . | . . . Level 4 . | . . . Level 5 . | . . . High Security . | . . . Max Security . | . . . Squads Dispatched 4 | . 2 2 Investigation 2 | . 2 . Extermination . | . . . Reinforcement 2 | . . 2 Assault . | . . . Garrison . | . . . Intercept . | . . . Searches Triggered . | . . . Construction Impeded . | . . . Haulers Reinforced . | . . . Active Scanning Responses . | . . . Cargo Convoy Interrupts . | . . . Stealth | -11 -10 -9 --------- Run | Yrd Mat Mat Distress Signals 2 | . 1 1 Communications Jammed . | . . . Distress Signals . | . . . Times Spotted 32 | 6 9 17 Peak Tracking Total 8 | 2 8 7 Tactical Retreats 7 | 4 . 3 Traps | -11 -10 -9 ------- Run | Yrd Mat Mat Traps Triggered . | . . . Indirectly . | . . . Trap Hack Attempts . | . . . Triggered . | . . . Disarmed . | . . . Reprogrammed . | . . . Reused . | . . . Traps Extracted . | . . . Installed . | . . . Triggered . | . . . Machines | -11 -10 -9 ---------- Run | Yrd Mat Mat Machines Disabled 1 | . . 1 Max in Single Turn 1 | . . 1 Machines Repaired . | . . . Machines Dismantled . | . . . Machines Sabotaged . | . . . Overloaded Fab Kills . | . . . Hacking | -11 -10 -9 --------- Run | Yrd Mat Mat Machines Accessed 3 | . 2 1 Terminals 3 | . 2 1 Fabricators . | . . . Repair Stations . | . . . Recycling Units . | . . . Scanalyzers . | . . . Garrison Access . | . . . Total Hacks 5 | . 4 1 Successful 5 | . 4 1 Failed . | . . . Catastrophic . | . . . Database Lockouts . | . . . Manual 4 | . 3 1 Terminals 5 | . 4 1 Fabricators . | . . . Repair Stations . | . . . Recycling Units . | . . . Scanalyzers . | . . . Garrison Access . | . . . Terminal Hacks 2 | . 1 1 Prototype ID Bank 1 | . 1 . Level Access Points 1 | . . 1 Fabricator Hacks . | . . . Repair Station Hacks . | . . . Recycling Unit Hacks . | . . . Scanalyzer . | . . . Garrison Access Hacks . | . . . Unauthorized Hacks 3 | . 3 . Terminals 3 | . 3 . Botnet 1 | . 1 . Sabotage 2 | . 2 . Fabricators . | . . . Repair Stations . | . . . Recycling Units . | . . . Scanalyzers . | . . . Garrison Access . | . . . Data Cores Recovered . | . . . Used . | . . . Hacking Detections 1 | . 1 . Full Trace Events . | . . . Feedback Events . | . . . Feedback Blocked . | . . . Robot Schematics Acquired . | . . . Robots Built . | . . . Authchips . | . . . Time . | . . . Total Robot Build Rating . | . . . Part Schematics Acquired . | . . . Parts Built . | . . . Authchips . | . . . Time . | . . . Total Part Build Rating . | . . . Parts Repaired . | . . . Time . | . . . Parts Recycled . | . . . Recycled Matter . | . . . Retrieved Matter . | . . . Retrieved Components . | . . . Parts Scanalyzed . | . . . Part Schematics Acquired . | . . . Parts Damaged . | . . . Bothacking | -11 -10 -9 ------------ Run | Yrd Mat Mat Used RIF Installer . | . . . Robots Hacked . | . . . Non-combat . | . . . Combat . | . . . Robot Hacks Applied . | . . . Relay Couplers Released . | . . . Fabnet Peak Effective % . | . . . Robots Rewired . | . . . Allies Hacked . | . . . Hacks Repelled . | . . . Allies | -11 -10 -9 -------- Run | Yrd Mat Mat Total Allies . | . . . Largest Group . | . . . Highest-Rated Group . | . . . Highest-Rated Ally . | . . . Total Orders . | . . . Ally Attacks . | . . . Total Damage . | . . . Kills . | . . . Allies Corrupted . | . . . Allies Melted . | . . . Intel | -11 -10 -9 ------- Run | Yrd Mat Mat Robot Analysis Total . | . . . Derelict Logs Recovered . | . . . Drone Launches . | . . . Drone Recoveries . | . . . Exploration | -11 -10 -9 ------------- Run | Yrd Mat Mat Turns Passed 2307 | 2142 38 127 Spaces Moved 586 | 332 71 183 Core 586 | 332 71 183 Treads . | . . . Legs . | . . . Wheels . | . . . Hover . | . . . Flight . | . . . Fastest Speed 50 | 50 50 50 Average Speed 51 | 50 50 54 Slowest Speed 300 | 50 50 300 Overloaded Moves . | . . . Propulsion Burnouts . | . . . Robots Hopped . | . . . Cave-ins Triggered . | . . . Exploration Rate (%) 32 | 46 23 29 Regions Visited 2 Branch Regions . Pre-discovered Areas . | . . . Known Exits Taken . | . . . Unknown Exits Taken 2 | 1 1 . Scrap Searched . | . . . Spaces Dug . | . . . Terrain Destroyed 107 | . . 107 Melee . | . . . Projectile . | . . . AOE 107 | . . 107 Terrain Rammed . | . . . Walls Destroyed . | . . . Machines Disabled . | . . . Actions | -11 -10 -9 --------- Run | Yrd Mat Mat Total 2576 | 2307 72 197 Wait 1976 | 1976 . . Move 584 | 331 70 183 Hop . | . . . Pick Up . | . . . Fast Attach 4 | . . 4 Attach . | . . . Detach . | . . . Swap . | . . . Drop . | . . . Fire 4 | . . 4 Melee . | . . . Ram 8 | . 2 6 Kick . | . . . Crush . | . . . Escape Stasis . | . . . Rewire . | . . . Trap . | . . . Miscellaneous . | . . . Route ------- -11/Scrapyard -10/Materials -9/Materials (discovered 3 exits: Mat x3) History --------- Turn | Location | Event 1690 | -11/Scrapyard | Assembled infested the area 2002 | -11/Scrapyard | Discovered new exit (range 16) 2143 | -11/Scrapyard | Entered Materials 2144 | -10/Materials | Build established: Mutant 2176 | -10/Materials | Discovered new exit (range 11) 2177 | -10/Materials | Core integrity fell below 50% 2181 | -10/Materials | Entered another Materials area 2181 | -9/Materials | Evolved 2 slots: Weapon x2 2252 | -9/Materials | Core integrity fell below 50% 2263 | -9/Materials | Released all parts (4) 2285 | -9/Materials | Identified exit to Materials 2303 | -9/Materials | Core integrity fell below 20% 2308 | -9/Materials | Destroyed by Y-45 Defender with Heavy Assault Rifle Last Messages --------------- 02260_ U-05 Engineer destroyed. 02261_ The unstable cave ceiling collapses. 02261_ Lgt. Assault Rifle crushed. 02261_ The unstable cave ceiling collapses. 02263_ Released Rocket Launcher. 02267_ Acquired 4 matter. 02272_ U-05 Engineer lays Concrete. 02285_ Connecting with Terminal... 02285_ Current location identified: Materials >>Access(Main) Found 3 level access points to Materials: (94,22) (12,14) (13,79) Map updated. 02286_ K-01 Serf collects debris. 02299_ O-16 Technician uses terminal to summon reinforcements. 02299_ ALERT: Hostiles spotted, dispatching reinforcements to Terminal M002. 02299_ O-16 Technician locks terminal. Map ----- +----------------------------------------------------+ | ?????????????????????????????????? | | ?????????????????????????????????? | | ?????????????????????????????????? | | ?????????????????????????????????? | | ?????????????????????????????????? | | ?????????????????????????????????? | | ?????????????????????? ????????? | | ????????????????????? #???????? | | ????????????????????? #???????? | | ????????????????????? #???????? | | ????????????????????? #???????? | | ????????????????????? #??